{"text_format":"3","workbook":"xlsx","n_sheets":12,"sheets":["1р.здания","1р1прил.сооружения","1р2прил.казна","2р.трансп.","2р.1прил.маш.и обор.","2р.2прил.мебель","2р3прил.оргтех.","2р.4прил.иное движ. (2)","2р.5прил.ДК.оргтехн.","2р.6прил.ДК.спорт.инвент.","2р.7прил.дк.иное движимое. (2)","Лист1"],"read":"whole","date_system":"1900"}

{"sheet":"1р.здания","index":0,"n_rows":19,"n_cols":15,"rows_kept":19,"merged":[[3,13,3,15],[5,4,5,10],[7,0,7,14],[8,0,8,14],[9,0,9,14],[10,0,10,14],[11,0,11,14]]}
[]
[{"$nulls":13},"УТВЕРЖДАЮ:"]
[{"$nulls":13},"Глава Бобровского сельсовета"]
[{"$nulls":13},"Ванпилин С.Н."]
[]
[{"$nulls":4},"Реестр муниципального имущества на 01.01.2023г."]
[]
["1 раздел реестра"]
["муниципального имущества муниципального образования Бобровский сельсовет"]
["согласно постановления администрации Бобровского сельсовета от 12 декабря 2013 г.№ 214 "]
["\" Об утверждении Порядка ведения реестра муниципального имущества муниципального образования Бобровский сельсовет\""]
["(недвижимое имущество, здания)"]
[]
["№\nп/п","Наименование","Назначение","Адрес \nместонахождения","Год \nпостройки","Дата постановки на учет","Материал стен","Общая площадь, м2","Процент износа, %","Балансовая стоимость, руб.","Остаточная стоимость, руб.","Площадь земельного участка","Кадастровый номер земельного участка","Состояние","Правообладатель"]
[1,2,3,4,5,6,7,8,9,10,11,12,13,14,15]
[1,"Здание администрации","Нежилое","с.Бобровка ул.Ленина 41б",1990,"15.01.2014","кирпич",927.1,63.99,{"v":3989912.22,"d":"3,989,912.22"},{"v":1342154.5,"d":"1,342,154.50"},"2135м.кв","22:33:050507:491","Действующ","Администрация Бобровского сельсовета"]
[{"$f":"A16+1","v":2},"Здание пос.Лесной","Нежилое","пос.Лесной ул.Лесная 13а",2009,"21.10.2014","кирпич",74.8,100,{"v":1650000,"d":"1,650,000.00"},{"v":0,"d":"0.00"},"559м.кв","22:33:050202:172","Действующ","Администрация Бобровского сельсовета"]
[{"$f":"#REF!+1","v":{"$error":"#REF!"}}]
[{"$nulls":8},"ИТОГО:",{"$f":"SUM(J16:J18)","v":{"v":5639912.220000001,"d":"5,639,912.22"}},{"$f":"SUM(K16:K18)","v":{"v":1342154.5,"d":"1,342,154.50"}}]

{"sheet":"1р1прил.сооружения","index":1,"n_rows":17,"n_cols":13,"rows_kept":17,"merged":[[0,0,0,12],[1,0,1,12],[2,0,2,12]]}
["1 раздел реестра  "]
["муниципального имущества муниципального имущества Бобровский сельсовет"]
["(недвижимое имущество , сооружения)(приложение 1)"]
[]
["№\nп/п","Наименование","Адрес \nместонахождения","Год \nпостройки","Материал","Дата постановки на учет","Процент износа, %","Балансовая стоимость, руб.","Остаточная стоимость, руб.","Площадь земельного участка","Кадастровый номер земельного участка","Состояние","Правообладатель"]
[1,2,3,4,5,6,7,8,9,10,11,12,13]
[1,"Котел водогрейный","с.Бобровка ул.Ленина 41б","2013-10-31","железо","2013-10-31",100,{"v":32078,"d":"32,078.00"},{"v":0,"d":"0.00"},null,null,"действующий","Администрация Бобровского сельсовета"]
[{"$f":"A7+1","v":2},"Пушка тепловая ","с.Бобровка ул.Ленина 41б","2013-01-22","железо","2013-01-22",100,{"v":26000,"d":"26,000.00"},{"v":0,"d":"0.00"},null,null,"действующий","Администрация Бобровского сельсовета"]
[3,"Памятная доска","с.Бобровка ул.Ленина 41б","09.07.2013","дерево.","2013-07-09",100,{"v":10000,"d":"10,000.00"},{"v":0,"d":"0.00"},null,null,"действующий","Администрация Бобровского сельсовета"]
[{"$f":"A9+1","v":4},"Туалет одноочковый","с.Бобровка территория кладбища","2016-04-18","дерево.","18.04.216",100,{"v":3720,"d":"3,720.00"},{"v":0,"d":"0.00"},null,null,"действующий","Администрация Бобровского сельсовета"]
[5,"Туалетдвухочковый","с.Бобровка территория кладбища","2016-04-18","дерево.","2016-04-18",100,{"v":4320,"d":"4,320.00"},{"v":0,"d":"0.00"},null,null,"действующий","Администрация Бобровского сельсовета"]
[6,"Ограждение кладбища с.Сосновка","с.Сосновка","2014-09-30","железо","2014-09-30",13.33,{"v":99984,"d":"99,984.00"},{"v":0,"d":"0.00"},null,null,"действующий","Администрация Бобровского сельсовета"]
[7,"Ворота на кладбище","с.Бобровка территория кладбища","2016-04-30","железо","2016-04-30",100,{"v":29800,"d":"29,800.00"},{"v":0,"d":"0.00"},null,null,"действующий","Администрация Бобровского сельсовета"]
[8,"Мусорный контейнер","с.Бобровка ул.Ленина 79","2013-07-09","железо","2013-07-09",100,{"v":11000,"d":"11,000.00"},{"v":0,"d":"0.00"},null,null,"действующий","Администрация Бобровского сельсовета"]
[9,"Памятник воинам ВОВ","с.Бобровка ул.Ленина 81","2013-10-15","Бетон","2013-10-15",{"$nulls":5},"действующий","Администрация Бобровского сельсовета"]
[10,"Остановка у здания администрации","с.Бобровка ул.Ленина 41б","2013-10-15","железо","2013-10-15",null,{"v":18900,"d":"18,900.00"},{"v":0,"d":"0.00"},null,null,"действующий","Администрация Бобровского сельсовета"]
[{"$nulls":6},"ИТОГО:",{"$f":"SUM(H7:H16)","v":{"v":235802,"d":"235,802.00"}},{"$f":"SUM(I7:I16)","v":{"v":0,"d":"0.00"}}]

{"sheet":"1р2прил.казна","index":2,"n_rows":16,"n_cols":16,"rows_kept":16,"merged":[[0,0,0,15],[1,0,1,15],[2,0,2,15]]}
["1 раздел реестра  "]
["муниципального имущества муниципального образования Бобровский сельсовет"]
["недвижимое имущество (казна) (приложение 2)"]
[]
["№\nп/п","Наименование","Назначение","Адрес \nместонахождения","Год \nпостройки","Дата постановки на учет","Материал стен","Общая площадь, м2","Протяженность, м","Процент износа, %","Балансовая стоимость, руб.","Остаточная стоимость, руб.","Площадь земельного участка","Кадастровый номер земельного участка","Состояние","Правообладатель"]
[1,2,3,4,5,6,7,8,9,10,11,12,13,14,15,16]
[1,"Земельный участок под здание администрации","Под административ. здание","с.Бобровка ул.Ленина 41б ",null,"2014-05-13",null,"2135",null,"-",{"v":405351.1,"d":"405,351.10"},{"$f":"K7","v":{"v":405351.1,"d":"405,351.10"}},"2135 м.кв","22:33:050511:143","Действует","Администрация \nБобровского сельсовета"]
[{"$f":"A7+1","v":2},"Земельный участок ","                                             Под сквер","с.Бобровка ул.Лесная 31 ",null,"2013-11-08",null,13668,null,null,{"v":6287.28,"d":"6,287.28"},{"$f":"K8","v":{"v":6287.28,"d":"6,287.28"}},"13668 м.кв","22:33:050509:487","Действует","Администрация \nБобровского сельсовета"]
[{"$f":"A8+1","v":3},"Земельный участок","Под административ. здание","п.Лесной ул.Лесная 13",null,"23,08.2013",null,559,null,null,{"v":133612.18,"d":"133,612.18"},{"v":133612.18,"d":"133,612.18"},"559 м.кв","22:33:050202:50","Действует","Администрация \nБобровского сельсовета"]
[{"$f":"A9+1","v":4},"Земельный участок","для размещения памятника","с.Бобровка ул.Ленина 81",null,"2013-11-08",null,"428",null,null,196.88,196.88,"428 м.кв","22:33:050512:365","Действует","Администрация \nБобровского сельсовета"]
[5,"Дорога ","общее пользование","с.Бобровка",null,"2012-12-27",null,"66220",{"$nulls":3},{"v":0,"d":"0.00"},"66220м.кв",null,"Действует","Администрация \nБобровского сельсовета"]
[6,"Дорога ","общее пользование","пос.Сосновка",null,"2012-12-27",null,"4980",{"$nulls":3},{"v":0,"d":"0.00"},"4980 м.кв","---","Действует","Администрация \nБобровского сельсовета"]
[7,"Дорога ","общее пользование","пос.Лесной",null,"2012-12-27",null,"8800",{"$nulls":3},{"v":0,"d":"0.00"},"8800м.в","---","Действует","Администрация \nБобровского сельсовета"]
[8,"Земельный участок","Отдых","с.Бобровка ул.Гастелло 22 д",null,"2016-03-23",null,"5592",null,null,{"v":2572.32,"d":"2,572.32"},{"v":2572.32,"d":"2,572.32"},"5592м.кв","---","Действует","Администрация \nБобровского сельсовета"]
[9,"Земельный участок","отдых","с. Бобровка ул.Ленина 83",null,"2019-01-09",null,"9860",null,null,{"v":4612015,"d":"4,612,015.00"},{"v":4612015,"d":"4,612,015.00"},"9860 м. кв","22:33:050512:390","Действует","Администрация \nБобровского сельсовета"]
[{"$nulls":9},"ИТОГО:",{"$f":"K7+K8+K9+K10+K14+K15","v":{"v":5160034.76,"d":"5,160,034.76"}},{"$f":"L7+L8+L9+L10+L14+L15","v":{"v":5160034.76,"d":"5,160,034.76"}}]

{"sheet":"2р.трансп.","index":3,"n_rows":11,"n_cols":11,"rows_kept":11,"merged":[[0,0,0,10],[1,0,1,10],[2,0,2,14],[3,0,3,14],[4,0,4,10]]}
["2 раздел реестра"]
["муниципального имущества  муниципального образования Бобровский сельсовет"]
["согласно постановления администрации Бобровского сельсовета от 12 декабря 2013 г.№ 214 "]
["\" Об утверждении Порядка ведения реестра муниципального имущества муниципального образования Бобровский сельсовет\""]
["(движимое имущество , транспорт)"]
[]
["№\nп/п","Наименование","Характеристика","Адрес \nместонахождения","Год \nввода в эксплуатацию","Дата постановки на учет","Процент износа, %","Балансовая стоимость, руб.","Остаточная стоимость, руб.","Состояние","Правообладатель"]
[1,2,3,4,5,6,7,8,9,10,11]
[1,"УАЗ 396254","специальный А/М","с.Бобровка ул.Ленина 41б",2008,"2008",83.87,{"v":340000,"d":"340,000.00"},{"v":0,"d":"0.00"},"действующий","Администрация Бобровского сельсовета"]
[2,"ЗИЛ 131 АРС14","грузовой","с.Бобровка ул.Ленина 41б",1986,"24.11.2011",100,{"v":760199.04,"d":"760,199.04"},{"v":0,"d":"0.00"},"действующий","Администрация Бобровского сельсовета"]
[{"$nulls":6},"ИТОГО:",{"$f":"SUM(H9:H10)","v":{"v":1100199.04,"d":"1,100,199.04"}},{"$f":"SUM(I9:I10)","v":{"v":0,"d":"0.00"}}]

{"sheet":"2р.1прил.маш.и обор.","index":4,"n_rows":22,"n_cols":10,"rows_kept":22,"merged":[[0,0,0,9],[1,0,1,9],[2,0,2,9]]}
["2 раздел реестра"]
["муниципального имущества муниципального образования Бобровский сельсовет"]
["(движимое, машины и оборудование) ( Приложение 1)"]
[]
["№\nп/п","Наименование","Адрес \nместонахождения","Год \nприобретения","Дата постановки на учет","Процент износа, %","Балансовая стоимость, руб.","Остаточная стоимость, руб.","Состояние","Правообладатель"]
[1,2,3,4,5,6,7,8,9,10]
[1,"Пылесос с аква фильтром","с.Бобровка ул.Ленина 79",2012,"2012",100,{"v":13000,"d":"13,000.00"},{"v":0,"d":"0.00"},"действующий","Администрация Бобровского сельсовета"]
[{"$f":"A7+1","v":2},"Раздатчик холодной и горячей воды ( кулер)","с.Бобровка ул.Ленина 41б","2012","2012",100,{"v":9200,"d":"9,200.00"},{"v":0,"d":"0.00"},"действующий","Администрация Бобровского сельсовета"]
[3,"Холодильник Саратов","с.Бобровка ул.Ленина 41б","2008","2008",100,{"v":10198,"d":"10,198.00"},{"v":0,"d":"0.00"},"действующий","Администрация Бобровского сельсовета"]
[4,"Дымосос Таира","с.Бобровка ул.Ленина 41б","2008","2008",100,{"v":41217,"d":"41,217.00"},{"v":0,"d":"0.00"},"действующий","Администрация Бобровского сельсовета"]
[5,"Холодильник Норд","с.Бобровка ул.Ленина 41б","2014","2014",100,{"v":9100,"d":"9,100.00"},{"v":0,"d":"0.00"},"действующий","Администрация Бобровского сельсовета"]
[6,"Телефон ","с.Бобровка ул.Ленина 41б","2014","2014",100,{"v":360,"d":"360.00"},{"v":0,"d":"0.00"},"действующий","Администрация Бобровского сельсовета"]
[7,"Телефон панасоник КХ-FT982RU","с.Бобровка ул.Ленина 41б","2012","2012",100,{"v":6196.37,"d":"6,196.37"},{"v":0,"d":"0.00"},"действующий","Администрация Бобровского сельсовета"]
[8,"Насосная станция","с.Бобровка ул.Ленина 41б","2016","2016",100,{"v":8000,"d":"8,000.00"},{"v":0,"d":"0.00"},"действующий","Администрация Бобровского сельсовета"]
[9,"Мегафон с сиреной ","с.Бобровка ул.Ленина 41б","2013","2013",100,{"v":3200,"d":"3,200.00"},{"v":0,"d":"0.00"},"действующий","Администрация Бобровского сельсовета"]
[10,"Мегафон с сиреной ","с.Бобровка ул.Ленина 41б","2013","2013",100,{"v":3200,"d":"3,200.00"},{"v":0,"d":"0.00"},"действующий","Администрация Бобровского сельсовета"]
[11,"телефакс  ПАНАСОНИК ","с.Бобровка ул.Ленина 41б","2013","2013",100,{"v":5780,"d":"5,780.00"},{"v":0,"d":"0.00"},"действующий","Администрация Бобровского сельсовета"]
[12,"Мотокоса FS 55","c.Бобровка ул.Ленина 41б","2016","2016",100,{"v":15139,"d":"15,139.00"},{"v":0,"d":"0.00"},"действующий","Администрация Бобровского сельсовета"]
[13,"Модем коннект","с.Бобровка ул.Ленина 41б","2014","2014",100,{"v":850,"d":"850.00"},{"v":0,"d":"0.00"},"действующий","Администрация Бобровского сельсовета"]
[14,"Калькулятор","с.Бобровка ул.Ленина 41б","2014","2014",100,{"v":430,"d":"430.00"},{"v":0,"d":"0.00"},"действующий","Администрация Бобровского сельсовета"]
[{"$f":"17:17","v":11}]
[{"$nulls":5},"ИТОГО:",{"$f":"SUM(G7:G21)","v":{"v":125870.37,"d":"125,870.37"}},{"$f":"SUM(H7:H21)","v":{"v":0,"d":"0.00"}}]

{"sheet":"2р.2прил.мебель","index":5,"n_rows":22,"n_cols":11,"rows_kept":22,"merged":[[0,0,0,10],[1,0,1,9],[2,0,2,9]]}
["2 раздел реестра"]
["муниципального имущества муниципального образования Бобровский сельсовет"]
["(движимое, мебель) (Приложение 2)"]
[]
["№\nп/п","Наименование","Адрес \nместонахождения","Год \nприобретения","Дата постановки на учет","Материал","Процент износа, %","Балансовая стоимость, руб.","Остаточная стоимость, руб.","Состояние","Правообладатель"]
[1,2,3,4,5,6,7,8,9,10,11]
[1,"Кресло офисное  ( кабинет главы )","с.Бобровка ул.Ленина 41б","2015","2015","коже-заменитель",100,{"v":9500,"d":"9,500.00"},{"v":0,"d":"0.00"},"действующее ","Администрация Бобровского сельсовета"]
[{"$f":"A7+1","v":2},"Стеллаж-архив ( приемная","с.Бобровка ул.Ленина 41б","2012","2012","железо",100,{"v":15950,"d":"15,950.00"},{"v":0,"d":"0.00"},"действующее ","Администрация Бобровского сельсовета"]
[3,"Набор мебели для регистрации","с.Бобровка ул.Ленина 41б","2012","2012","дерево",100,{"v":12000,"d":"12,000.00"},{"v":0,"d":"0.00"},"действующее ","Администрация Бобровского сельсовета"]
[4,"Стол компьютерный ( кабинет зама)","с.Бобровка ул.Ленина 41б","2012","2012","дерево",100,{"v":3851,"d":"3,851.00"},{"v":0,"d":"0.00"},"действующее ","Администрация Бобровского сельсовета"]
[5,"Комплект штор в торжественном зале","с.Бобровка ул.Ленина 41б","2012","2012","шелк",100,{"v":11509,"d":"11,509.00"},{"v":0,"d":"0.00"},"действующее ","Администрация Бобровского сельсовета"]
[6,"Стулья металлические","с.Бобровка ул.Ленина 41б","2012","2012","железо",100,{"v":19200,"d":"19,200.00"},{"v":0,"d":"0.00"},"действующее ","Администрация Бобровского сельсовета"]
[7,"Шкаф платяной ( глава)","с.Бобровка ул.Ленина 41б","2013","2013","дерево",100,{"v":7800,"d":"7,800.00"},{"v":0,"d":"0.00"},"действующее ","Администрация Бобровского сельсовета"]
[8,"Стремянка оцинкованная","с.Бобровка ул.Ленина 41б","2013","2013","железо",100,{"v":1083,"d":"1,083.00"},{"v":0,"d":"0.00"},"действующее ","Администрация Бобровского сельсовета"]
[9,"Набор столов письменных 2 шт.общий отдел ВУС","с.Бобровка ул.Ленина 41б","2013","2013","дерево",100,{"v":11480,"d":"11,480.00"},{"v":0,"d":"0.00"},"действующее ","Администрация Бобровского сельсовета"]
[10,"Шкаф двухстворчатый ( приемная)","с.Бобровка ул.Ленина 41б","2013","2013","дерево",100,{"v":14320,"d":"14,320.00"},{"v":0,"d":"0.00"},"действующее ","Администрация Бобровского сельсовета"]
[11,"Стол компьютерный ( кабинет бухгалтерии)","с.Бобровка ул.Ленина 41б","2012","2012","дерево",100,{"v":4640,"d":"4,640.00"},{"v":0,"d":"0.00"},"действующее ","Администрация Бобровского сельсовета"]
[12,"Стол тумба ( спец по имуществу)","с.Бобровка ул.Ленина 41б","2012","2012","железо",100,{"v":7480,"d":"7,480.00"},{"v":0,"d":"0.00"},"действующее ","Администрация Бобровского сельсовета"]
[13,"Набор мебели ( стол письменный ,шкаф для документов зам главы)","с.Бобровка ул.Ленина 41б","2013","2013","дерево",100,{"v":11480,"d":"11,480.00"},{"v":0,"d":"0.00"},"действующее ","Администрация Бобровского сельсовета"]
[14,"Набор мебели 2 шт бухгалтерияя","с.Бобровка ул.Ленина 41б","2013","2013","дерево",100,{"v":14280,"d":"14,280.00"},{"v":0,"d":"0.00"},"действующее ","Администрация Бобровского сельсовета"]
[15,"Стеллаж общий отдел","с.Бобровка ул.Ленина 41б","2015","2013","дерево",100,{"v":27360,"d":"27,360.00"},{"v":0,"d":"0.00"},"действующее ","Администрация Бобровского сельсовета"]
[{"$nulls":6},"ИТОГО:",{"$f":"SUM(H7:H21)","v":{"v":171933,"d":"171,933.00"}},{"$f":"SUM(I7:I16)","v":{"v":0,"d":"0.00"}}]

{"sheet":"2р3прил.оргтех.","index":6,"n_rows":38,"n_cols":10,"rows_kept":38,"merged":[[0,0,0,9],[1,0,1,9],[2,0,2,9]]}
["2 раздел реестра"]
["муниципального имущества  муниципального образования Бобровский сельсовет"]
["(движимое,  оргтехника и музыкальная аппаратура) (приложение 3)"]
[]
["№\nп/п","Наименование","Адрес \nместонахождения","Год \nприобретения","Дата постановки на учет","Процент износа, %","Балансовая стоимость, руб.","Остаточная стоимость, руб.","Состояние","Правообладатель"]
[1,2,3,4,5,6,7,8,9,10]
[1,"МФУ HP Lazer Pкщ М 125 глава","с.Бобровка ул.Ленина 41б","2016","2016",100,{"v":8500,"d":"8,500.00"},{"v":0,"d":"0.00"},"действующий","Администрация Бобровского сельсовета"]
[{"$f":"A7+1","v":2},"МФУ HP Lazer Pкщ М 125зам главы","с.Бобровка ул.Ленина 41б","2016","2016",100,{"v":8500,"d":"8,500.00"},{"v":0,"d":"0.00"},"действующий","Администрация Бобровского сельсовета"]
[{"$f":"A8+1","v":3},"Музыкальный центр LG","c.Бобровка ул.Ленина 41б","2013","2013",100,{"v":4958,"d":"4,958.00"},{"v":0,"d":"0.00"},"действующий","Администрация Бобровского сельсовета"]
[4,"Принтер CANON LAZER 3000 Зам главы","с.Бобровка ул.Ленина 41б","2008","2008",100,{"v":5678,"d":"5,678.00"},{"v":0,"d":"0.00"},"действующий","Администрация Бобровского сельсовета"]
[5,"Системный блок приемная","с.Бобровка ул.Ленина 41б","2013","2013",100,{"v":13832,"d":"13,832.00"},{"v":0,"d":"0.00"},"действующий","Администрация Бобровского сельсовета"]
[6,"Маршрутизатор TP-LINR TL-MR 3220 Бухгалтерия","с.Бобровка ул.Ленина 41б","2010","2010",100,{"v":950,"d":"950.00"},{"v":0,"d":"0.00"},"действующий","Администрация Бобровского сельсовета"]
[7,"МФУ LAZERGET M1132","c.Бобровка ул.Ленина 41б","2010","2010",100,{"v":6100,"d":"6,100.00"},{"v":0,"d":"0.00"},"действующий","Администрация Бобровского сельсовета"]
[8,"MФУ LAZERGET M1132","c.Бобровка ул.Ленина 41б","2010","2010",100,{"v":6100,"d":"6,100.00"},{"v":0,"d":"0.00"},"действующий","Администрация Бобровского сельсовета"]
[9,"ПринтерLAZERJET PRO 1102 Бухгалтерия","с.Бобровка ул.Ленина 41б","2010","2010",100,{"v":3850,"d":"3,850.00"},{"v":0,"d":"0.00"},"действующий","Администрация Бобровского сельсовета"]
[10,"Принтер CANON LAZER SHOT LBP29000 общ.отд.","с.Бобровка ул.Ленина 41б","2014","2014",100,{"v":6972,"d":"6,972.00"},{"v":0,"d":"0.00"},"действующий","Администрация Бобровского сельсовета"]
[11,"Ноутбук DHS в сборе ( сумка мышь ноутбук) бухгалтерия.","с.Бобровка ул.Ленина 41б","2013","2013",100,{"v":19390,"d":"19,390.00"},{"v":0,"d":"0.00"},"действующий","Администрация Бобровского сельсовета"]
[12,"Ноутбук acer Extensa (Глава)","с.Бобровка ул.Ленина 41б","2015","2015",100,{"v":25000,"d":"25,000.00"},{"v":0,"d":"0.00"},"действующий","Администрация Бобровского сельсовета"]
[13,"Коммутатор","с.Бобровка ул.Ленина 41б","2010","2010",100,{"v":1390,"d":"1,390.00"},{"v":0,"d":"0.00"},"действующий","Администрация Бобровского сельсовета"]
[14,"Компьютер в сборе ( системный блок,монитор) ВУС","с.Бобровка ул.Ленина 41б","2010","2010",100,{"v":16278,"d":"16,278.00"},{"v":0,"d":"0.00"},"действующий","Администрация Бобровского сельсовета"]
[15,"Калькулятор (бухгалтерия)","с.Бобровка ул.Ленина 41б","2010","2010",100,{"v":950,"d":"950.00"},{"v":0,"d":"0.00"},"действующий","Администрация Бобровского сельсовета"]
[16,"Музыкальная аккустическая система ( торжественный зал)","с.Бобровка ул.Ленина 41б","2010","2010",100,{"v":5000,"d":"5,000.00"},{"v":0,"d":"0.00"},"действующий","Администрация Бобровского сельсовета"]
[17,"Системный блок ( зам главы)","с.Бобровка ул.Ленина 41б","2010","2010",100,{"v":10147.02,"d":"10,147.02"},{"v":0,"d":"0.00"},"действующий","Администрация Бобровского сельсовета"]
[18,"Системный блок ( общий отдел спец.по имущ.)","с.Бобровка ул.Ленина 41б","2010","2010",100,{"v":10710,"d":"10,710.00"},{"v":0,"d":"0.00"},"действующий","Администрация Бобровского сельсовета"]
[19,"Системный блок (бухгалтерия)","с.Бобровка ул.Ленина 41б","2010","2010",100,{"v":24523,"d":"24,523.00"},{"v":0,"d":"0.00"},"действующий","Администрация Бобровского сельсовета"]
[20,"Компьютер в сборе ( системный блок,монитор,клавиатура , мышь блок питания)  Бухгалтерия","с.Бобровка ул.Ленина 41б","2008","2008",100,{"v":18546,"d":"18,546.00"},{"v":0,"d":"0.00"},"действующий","Администрация Бобровского сельсовета"]
[21,"Компьтер в сборе ( Монитор LG  ; системный блок АМD,принтерLazerget ; мышь проводная , клавиатура, блок бесперебойного питания Ippon) ВУС","с.Бобровка ул.Ленина 41б","2006","2006",100,{"v":33967,"d":"33,967.00"},{"v":0,"d":"0.00"},"действующий","Администрация Бобровского сельсовета"]
[22,"Компьютер в сборе Бухгалтерия( монитор Samsund; системный блок DHS; принтер Lazerget1102; мышь проводная Gazet; клавиатура ; блок бесперебойного питания Ippon) ","с.Бобровка ул.Ленина 41б","2008","2008",100,{"v":30550.24,"d":"30,550.24"},{"v":0,"d":"0.00"},"действующий","Администрация Бобровского сельсовета"]
[23,"Монитор в сборе Общий отдел спец по имуществу","с.Бобровка ул.Ленина 41б","2010","2010",100,{"v":8355,"d":"8,355.00"},{"v":0,"d":"0.00"},"действующий","Администрация Бобровского сельсовета"]
[24,"МФУ лазерный SAMSUNG 4220 Бухгалтерия","с.Бобровка ул.Ленина 41б","2005","2005",100,{"v":7201,"d":"7,201.00"},{"v":0,"d":"0.00"},"действующий","Администрация Бобровского сельсовета"]
[25,"Копировальный аппарат CANON 3228 ( Обший отдел сп.по имуществу)","с.Бобровка ул.Ленина 41б","2010","2010",100,{"v":11597.1,"d":"11,597.10"},{"v":0,"d":"0.00"},"действующий","Администрация Бобровского сельсовета"]
[26,"Комплект видеокамера  TFWC20H70 и видео регистратор JVR 9008","c.Бобровка ул.Ленина 41б","2016","2016",100,{"v":15000,"d":"15,000.00"},{"v":0,"d":"0.00"},"действующий","Администрация Бобровского сельсовета"]
[27,"Блок питания БП IPPON Pomerpro 600","c.Бобровка ул.Ленина 41б","2015","2015",100,{"v":4480,"d":"4,480.00"},{"v":0,"d":"0.00"},"действующий","Администрация Бобровского сельсовета"]
[{"$f":"A33+1","v":28},"Блок питания БП IPPON Pomerpro 600","с.Бобровка ул.Ленина 41б","2015","2015",100,{"v":4480,"d":"4,480.00"},{"v":0,"d":"0.00"},"действующий","Администрация Бобровского сельсовета"]
[29,"Блок питания БП IPPON Pomerpro 600","с.Бобровка ул.Ленина 41б","2015","2015",100,{"v":4480,"d":"4,480.00"},{"v":0,"d":"0.00"},"действующий","Администрация Бобровского сельсовета"]
[30,"Блок питания БП IPPON Pomerpro 600","с.Бобровка ул.Ленина 41б","2015","2015",100,{"v":4480,"d":"4,480.00"},{"v":0,"d":"0.00"},"действующий","Администрация Бобровского сельсовета"]
[31,"Фотоаппарат SAMSUNG","c.Бобровка ул.Ленина 41б","2013","2013",100,{"v":4898,"d":"4,898.00"},{"v":0,"d":"0.00"},"действующий","Администрация Бобровского сельсовета"]
[{"$nulls":5},"ИТОГО:",{"$f":"SUM(G7:G37)","v":{"v":326862.36,"d":"326,862.36"}},{"$f":"SUM(H7:H37)","v":{"v":0,"d":"0.00"}}]

{"sheet":"2р.4прил.иное движ. (2)","index":7,"n_rows":10,"n_cols":10,"rows_kept":10,"merged":[[0,0,0,9],[1,0,1,9],[2,0,2,9]]}
["2 раздел реестра"]
["муниципального имущества  муниципального образования Бобровский сельсовет"]
["(движимое,  иное движимое имущество) Приложение 4)"]
[]
["№\nп/п","Наименование","Адрес \nместонахождения","Год \nприобретения","Дата постановки на учет","Процент износа, %","Балансовая стоимость, руб.","Остаточная стоимость, руб.","Состояние","Правообладатель"]
[1,2,3,4,5,6,7,8,9,10]
[1,"Административный сборник (специалист по имуществу)","с.Бобровка ул.Ленина 41б","2013","2013",100,61.75,{"v":0,"d":"0.00"},"действующий","Администрация Бобровского сельсовета"]
[2,"Комментарий к КОАП (специалист по имуществу)","с.Бобровка ул.Ленина 41б","2010","2010",100,422.75,{"v":0,"d":"0.00"},"действующий","Администрация Бобровского сельсовета"]
[3,"Знак дорожный ","с.Бобровка ул.Ленина 41б","205","2016",100,{"v":16800,"d":"16,800.00"},{"v":0,"d":"0.00"},"действующий","Администрация Бобровского сельсовета"]
[{"$nulls":5},"ИТОГО:",{"$f":"SUM(G7:G9)","v":{"v":17284.5,"d":"17,284.50"}},{"$f":"SUM(H7:H8)","v":{"v":0,"d":"0.00"}}]

{"sheet":"2р.5прил.ДК.оргтехн.","index":8,"n_rows":30,"n_cols":10,"rows_kept":30,"merged":[[0,0,0,9],[1,0,1,9],[2,0,2,9]]}
["2 раздел реестра"]
["муниципального имущества муниципального образования Бобровский сельсовет"]
["Дом культуры (движимое, оргтехника и музыкальная аппаратура) (Приложение 5 )"]
[]
["№\nп/п","Наименование","Адрес \nместонахождения","Год \nприобретения","Дата постановки на учет","Процент износа, %","Балансовая стоимость, руб.","Остаточная стоимость, руб.","Состояние","Правообладатель"]
[1,2,3,4,5,6,7,8,9,10]
[1,"Музыкальный центр MUSTERU","с.Бобровка ул.Ленина 79 ","2010","2010",100,{"v":3500,"d":"3,500.00"},{"v":0,"d":"0.00"},"действующее","Администрация Бобровского сельсовета"]
[{"$f":"A7+1","v":2},"Комплект аккустических систем","с.Бобровка ул.Ленина 79 ","2008","2008",100,{"v":3957,"d":"3,957.00"},{"v":0,"d":"0.00"},"действующее","Администрация Бобровского сельсовета"]
[3,"Усилитель CROWN","с.Бобровка ул.Ленина 79 ","2010","2010",100,{"v":10881,"d":"10,881.00"},{"v":0,"d":"0.00"},"действующее","Администрация Бобровского сельсовета"]
[4,"Проигрыватель SAMSUNG DBD K320","с.Бобровка ул.Ленина 79 ","2008","2008",100,{"v":4405,"d":"4,405.00"},{"v":0,"d":"0.00"},"действующее","Администрация Бобровского сельсовета"]
[5,"Комплект звуковой аппаратуры","с.Бобровка ул.Ленина 79 ","2003","2003",100,{"v":19931.52,"d":"19,931.52"},{"v":0,"d":"0.00"},"действующее","Администрация Бобровского сельсовета"]
[6,"Стерео - мини центр FILLIPS","с.Бобровка ул.Ленина 79 ","2005","2005",100,{"v":4928,"d":"4,928.00"},{"v":0,"d":"0.00"},"действующее","Администрация Бобровского сельсовета"]
[7,"Радиосистема вокал ( микрофон)","с.Бобровка ул.Ленина 79 ","2008","2008",100,{"v":4700,"d":"4,700.00"},{"v":0,"d":"0.00"},"действующее","Администрация Бобровского сельсовета"]
[8,"Световой прибор ( светомузыка )","с.Бобровка ул.Ленина 79 ","2012","2012",100,{"v":3962,"d":"3,962.00"},{"v":0,"d":"0.00"},"действующее","Администрация Бобровского сельсовета"]
[9,"12 канальный микшер","с.Бобровка ул.Ленина 79 ","2008","2008",100,{"v":8590,"d":"8,590.00"},{"v":0,"d":"0.00"},"действующее","Администрация Бобровского сельсовета"]
[10,"Микрофон проводной ( караоке)","с.Бобровка ул.Ленина 79 ","2011","2011",100,{"v":3100,"d":"3,100.00"},{"v":0,"d":"0.00"},"действующее","Администрация Бобровского сельсовета"]
[11,"Активная аккустическая мультимеийная система VR HT9D 903V","с.Бобровка ул.Ленина 79 ","2013","2013",100,{"v":11600,"d":"11,600.00"},{"v":0,"d":"0.00"},"действующее","Администрация Бобровского сельсовета"]
[12,"Аккустическая мультимедийная система VR HT 904 V","с.Бобровка ул.Ленина 79 ","2013","2013",100,{"v":5300,"d":"5,300.00"},{"v":0,"d":"0.00"},"действующее","Администрация Бобровского сельсовета"]
[13,"Вокальная радиосистема","с.Бобровка ул.Ленина 79 ","2015","2015",100,{"v":13900,"d":"13,900.00"},{"v":0,"d":"0.00"},"действующее","Администрация Бобровского сельсовета"]
[14,"Принтер SNARP AR 163 (A3)","с.Бобровка ул.Ленина 79 ","2013","2013",100,{"v":10000,"d":"10,000.00"},{"v":0,"d":"0.00"},"действующее","Администрация Бобровского сельсовета"]
[15,"Моноблок","с.Бобровка ул.Ленина 79 ","2012","2012",100,{"v":22500,"d":"22,500.00"},{"v":0,"d":"0.00"},"действующее","Администрация Бобровского сельсовета"]
[16,"Моноблок","с.Бобровка ул.Ленина 79 ","2012","2012",100,{"v":23250,"d":"23,250.00"},{"v":0,"d":"0.00"},"действующее","Администрация Бобровского сельсовета"]
[17,"Пульт  Benringer UB1204 FXPRO","с.Бобровка ул.Ленина 79 ","2015","2015",100,{"v":10000,"d":"10,000.00"},{"v":0,"d":"0.00"},"действующее","Администрация Бобровского сельсовета"]
[18]
[19]
[20]
[21]
[22]
[23]
[{"$nulls":5},"ИТОГО:",{"$f":"SUM(G7:G29)","v":{"v":164504.52000000002,"d":"164,504.52"}},{"$f":"SUM(H7:H29)","v":{"v":0,"d":"0.00"}}]

{"sheet":"2р.6прил.ДК.спорт.инвент.","index":9,"n_rows":24,"n_cols":10,"rows_kept":24,"merged":[[0,0,0,9],[1,0,1,9],[2,0,2,9]]}
["2 раздел реестра"]
["муниципального имущества муниципального образования Бобровский сельсовет"]
["Дом культуры (движимое, спортивный инвентарь) ( приложение 6)"]
[]
["№\nп/п","Наименование","Адрес \nместонахождения","Год \nприобретения","Дата постановки на учет","Процент износа, %","Балансовая стоимость, руб.","Остаточная стоимость, руб.","Состояние","Правообладатель"]
[1,2,3,4,5,6,7,8,9,10]
[1,"Скамья трансформер","с.Бобровка ул.Ленина 79","2014","2014",100,{"v":4800,"d":"4,800.00"},{"v":0,"d":"0.00"},"действующее","Администрация Бобровского сельсовета"]
[{"$f":"A7+1","v":2},"Стол 600*1000","с.Бобровка ул.Ленина 79","2014","2014",100,{"v":3500,"d":"3,500.00"},{"v":0,"d":"0.00"},"действующее","Администрация Бобровского сельсовета"]
[3,"Скамья терго","с.Бобровка ул.Ленина 79","2014","2014",100,{"v":5450,"d":"5,450.00"},{"v":0,"d":"0.00"},"действующее","Администрация Бобровского сельсовета"]
[4,"Бильярд","с.Бобровка ул.Ленина 79","2014","2014",100,{"v":13916,"d":"13,916.00"},{"v":0,"d":"0.00"},"действующее","Администрация Бобровского сельсовета"]
[5,"Беговая дорожка","с.Бобровка ул.Ленина 79","2014","2014",100,{"v":50000,"d":"50,000.00"},{"v":0,"d":"0.00"},"действующее","Администрация Бобровского сельсовета"]
[6,"Хореографический станок","с.Бобровка ул.Ленина 79","2010","2010",100,{"v":5018,"d":"5,018.00"},{"v":0,"d":"0.00"},"действующее","Администрация Бобровского сельсовета"]
[7]
[8]
[9]
[10]
[11]
[12]
[13]
[14]
[15]
[16]
[17]
[{"$nulls":5},"ИТОГО:",{"$f":"SUM(G7:G23)","v":{"v":82684,"d":"82,684.00"}},{"$f":"SUM(H7:H23)","v":{"v":0,"d":"0.00"}}]

{"sheet":"2р.7прил.дк.иное движимое. (2)","index":10,"n_rows":16,"n_cols":10,"rows_kept":16,"merged":[[0,0,0,9],[1,0,1,9],[2,0,2,9]]}
["2 раздел реестра"]
["муниципального имущества муниципального образования Бобровский сельсовет"]
["Дом культуры (движимое, иное движимое имущество) ( приложение 7)"]
[]
["№\nп/п","Наименование","Адрес \nместонахождения","Год \nприобретения","Дата постановки на учет","Процент износа, %","Балансовая стоимость, руб.","Остаточная стоимость, руб.","Состояние","Правообладатель"]
[1,2,3,4,5,6,7,8,9,10]
[1,"Костюм хоровой  14 штук","с.Бобровка ул.Ленина 79","2010","2010",100,{"v":134400,"d":"134,400.00"},{"v":0,"d":"0.00"},"действующий","администрация Бобровского сельсовета"]
[{"$f":"A7+1","v":2},"Библиотечный фонд","c.Бобровка ул.Ленина 79","2000","2000",100,{"v":1887.89,"d":"1,887.89"},{"v":0,"d":"0.00"},"действующий","администрация Бобровского сельсовета"]
[3,"Методическая литература","с.Бобровка ул.Ленина 79","2008","2008",100,284.25,{"v":0,"d":"0.00"},"действующий","администрация Бобровского сельсовета"]
[4,"Занавес сцены","с.Бобровка ул.Ленина 79","2008","2008",100,{"v":23803,"d":"23,803.00"},{"v":0,"d":"0.00"},"действующий","администрация Бобровского сельсовета"]
[5,"Стол компьютерный 2 шт.","с.Бобровка ул.Ленина 79","2008","2008",100,{"v":6600,"d":"6,600.00"},{"v":0,"d":"0.00"},"действующий","администрация Бобровского сельсовета"]
[6,"Ель искусственная","с.Бобровка ул.Ленина 79","2010","2010",100,{"v":4000,"d":"4,000.00"},{"v":0,"d":"0.00"},"действующий","администрация Бобровского сельсовета"]
[7,"Ковер","с.Бобровка ул.Ленина 79","2010","2010",100,{"v":3740,"d":"3,740.00"},{"v":0,"d":"0.00"},"действующий","администрация Бобровского сельсовета"]
[8,"Ростовая кукла","с.Бобровка ул.Ленина 79","2010","2010",100,{"v":17000,"d":"17,000.00"},{"v":0,"d":"0.00"},"действующий","администрация Бобровского сельсовета"]
[9]
[{"$nulls":5},"ИТОГО:",{"$f":"SUM(G7:G15)","v":{"v":191715.14,"d":"191,715.14"}},{"$f":"SUM(H7:H15)","v":{"v":0,"d":"0.00"}}]

{"sheet":"Лист1","index":11,"n_rows":0,"n_cols":0,"rows_kept":0}